fUST/lending_fUST_20251208
["ID","MTS","AMOUNT","RATE_DAILY","PERIOD"]
[397409723,1765176073335,500.0,0.000512,120]
[397409724,1765176073387,2487.15318209,0.00053699,30]
[397409725,1765176073606,500.0,0.000512,120]
[397409726,1765176073705,2701.72327975,0.00053699,30]
[397409727,1765176073878,500.0,0.000512,120]
[397409728,1765176074013,500.0,0.000512,120]
[397409729,1765176074086,160.33979917,0.00053699,30]
[397409730,1765176074138,500.0,0.000512,120]
[397409731,1765176074380,500.0,0.000512,120]
[397409732,1765176074555,151.0,0.00053699,30]
[397409733,1765176074813,932.0,0.00053699,30]
[397409734,1765176074980,399.34854895,0.000515,120]
[397409735,1765176075158,151.0,0.00053699,30]
[397409736,1765176075231,500.0,0.000512,120]
[397409737,1765176075724,500.0,0.000512,120]
[397409738,1765176075773,399.34854895,0.0005,30]
[397409739,1765176075830,151.0,0.00053699,30]
[397409740,1765176076161,500.0,0.000512,120]
[397409741,1765176076420,151.17907251,0.00053699,30]
[397409742,1765176076611,500.0,0.00053699,30]
[397409743,1765176076670,500.0,0.000512,120]
[397409744,1765176077562,500.0,0.000512,120]
[397409745,1765176077655,500.0,0.00053699,30]
[397409746,1765176077755,803.57063177,0.00053699,30]
[397409747,1765176077809,500.0,0.000512,120]
[397409748,1765176077891,151.0,0.00053699,30]
[397409749,1765176077955,500.0,0.00053699,30]
[397409750,1765176078021,500.0,0.00053699,30]
[397409751,1765176078096,500.0,0.000512,120]
[397409752,1765176078147,151.0,0.00053699,30]
[397409753,1765176078304,151.0,0.00053699,30]
[397409754,1765176078383,500.0,0.00053699,30]
[397409755,1765176078438,500.0,0.000512,120]
[397409756,1765176078613,151.0,0.00053699,30]
[397409757,1765176078884,500.0,0.000512,120]
[397409758,1765176078950,151.60378831,0.00053699,30]
[397409759,1765176079025,500.0,0.00053699,30]
[397409760,1765176079284,151.68045385,0.00053699,30]
[397409761,1765176079374,500.0,0.000512,120]
[397409762,1765176079658,250.0,0.00053699,30]
[397409763,1765176079866,424.05934226,0.000512,120]
[397409764,1765176080240,285.23303768,0.00053699,30]
[397409765,1765176080609,10338.51071848,0.00053699,30]
[397409766,1765176081115,399.34854895,0.00053,120]
[397409767,1765176081820,399.34854895,0.000515,30]
[397409768,1765176082243,151.0,0.00053699,30]
[397409769,1765176082850,156.587,0.00053699,30]
[397409770,1765176083311,400.0,0.00053699,30]
[397409771,1765176083458,162.380719,0.00053699,30]
[397409772,1765176084139,400.0,0.00053699,30]
[397409773,1765176084222,162.89120786,0.00053699,30]
[397409774,1765176084567,400.0,0.00053699,30]
[397409775,1765176086677,762.0,0.00053698,30]
[397409776,1765176086919,152.0,0.00041041,120]
[397409777,1765176086983,762.0,0.00053698,30]
[397409778,1765176087261,152.0,0.00041041,120]
[397409779,1765176087327,762.0,0.00053698,30]
[397409780,1765176087520,152.0,0.00041041,120]
[397409781,1765176087927,762.0,0.00053698,30]
[397409782,1765176088047,762.0,0.00053698,30]
[397409783,1765176088106,152.0,0.00041041,120]
[397409784,1765176088238,762.0,0.00053698,30]
[397409785,1765176088395,762.0,0.00053698,30]
[397409786,1765176088876,762.0,0.00053698,30]
[397409787,1765176092590,762.0,0.00053698,30]
[397409788,1765176092886,762.0,0.00053698,30]
[397409789,1765176093175,762.0,0.00053698,30]
[397409793,1765176184566,270.75017432,0.000211,99]
[397409794,1765176192314,909.22062473,0.000211,99]
[397409795,1765176332201,-330.54,6.76e-05,2]
[397409796,1765176332223,-251.03515283,7.087e-05,2]
[397409797,1765176332246,-523.0,7.272e-05,2]
[397409798,1765176332269,-8.86630752,7.287e-05,2]
[397409800,1765176445088,-235.7036636,6.667e-05,2]
[397409801,1765176449080,-90.6263364,6.667e-05,2]
[397409802,1765176449104,-150.805427,7.273e-05,2]
[397409806,1765176545133,-324.63,6.625e-05,2]
[397409807,1765176552217,250.0,9.995e-05,3]
[397409808,1765176563118,-223.44,7.227e-05,2]
[397409809,1765176596149,135.63027827,6.623e-05,2]
[397409811,1765176606528,504.6,0.000203,120]
[397409812,1765176622314,504.59,0.000203,120]
[397409832,1765176631694,-182.01972173,6.623e-05,2]
[397409833,1765176631706,-514.0,6.623e-05,2]
[397409834,1765176631717,-358.40613546,7.225e-05,2]
[397409883,1765176638013,-276.90386454,7.225e-05,2]
[397409885,1765176638024,-1117.0,7.711e-05,2]
[397409888,1765176638034,-300.0,7.712e-05,2]
[397409889,1765176638043,-300.0,7.712e-05,2]
[397409891,1765176638053,-300.0,7.712e-05,2]
[397409894,1765176638062,-500.0,7.713e-05,2]
[397409895,1765176638071,-152.59441481,7.713e-05,2]
[397409897,1765176638081,-500.0,7.713e-05,2]
[397409899,1765176638091,-500.0,7.713e-05,2]
[397409901,1765176638100,-500.0,7.713e-05,2]
[397409903,1765176638110,-165.33936368,7.713e-05,2]
[397409905,1765176638119,-500.0,7.713e-05,2]
[397409907,1765176638129,-67649.29691517,7.714e-05,2]
[397409911,1765176638158,-1348.78,7.714e-05,2]
[397410174,1765176641160,-3233.12680255,7.714e-05,2]
[397410758,1765176646918,-5045.55857666,7.714e-05,2]
[397410793,1765176647237,-20494.34494848,7.714e-05,2]
[397410841,1765176684345,500.0,0.000203,120]
[397410842,1765176692690,500.0,0.000203,120]
[397410843,1765176702262,375.0,0.000203,120]
[397410844,1765176709179,250.0,0.000203,120]
[397410845,1765176735452,374.0,0.000203,120]
[397410848,1765177062472,400.88,0.00015,30]
[397410854,1765177531318,-1633.48630582,6.521e-05,2]
[397410855,1765177652084,-169.77119232,6.491e-05,2]
[397410856,1765177652105,-364.02748165,6.587e-05,2]
[397410858,1765177755111,-149.97251835,6.587e-05,2]
[397410859,1765177755134,-307.04,6.588e-05,2]
[397410860,1765177756342,250.0,9.994e-05,3]
[397410861,1765177769116,-614.08,7.187e-05,2]
[397410862,1765177818210,89.93394218,6.809e-05,2]
[397410890,1765177832220,-205.38605782,6.809e-05,2]
[397410891,1765177832230,-1268.89529296,7.388e-05,2]
[397410892,1765177832284,-343.2121676,7.388e-05,2]
[397410893,1765177832293,-524.0,7.388e-05,2]
[397410894,1765177832302,-590.63,7.428e-05,2]
[397410895,1765177832312,-170.165,7.462e-05,2]
[397410896,1765177832322,-1612.10746056,7.545e-05,2]
[397410897,1765177832334,-1200.0,7.607e-05,2]
[397410898,1765177832344,-228.0,7.608e-05,2]
[397410899,1765177832355,-290.0,7.608e-05,2]
[397410900,1765177832365,-300.0,7.608e-05,2]
[397410901,1765177832377,-300.0,7.608e-05,2]
[397410902,1765177832387,-1200.0,7.609e-05,2]
[397410903,1765177832610,-302700.14812205,7.614e-05,2]
[397410926,1765177838071,-201.3348851,7.608e-05,2]
[397410928,1765177838081,-500.0,7.608e-05,2]
[397410930,1765177838091,-488.27609705,7.608e-05,2]
[397410951,1765177838281,-120.16050937,7.608e-05,2]
[397410953,1765177838291,-500.0,7.608e-05,2]
[397410955,1765177838301,-500.0,7.608e-05,2]
[397410957,1765177838310,-500.0,7.608e-05,2]
[397410959,1765177838319,-500.0,7.608e-05,2]
[397410961,1765177838329,-500.0,7.608e-05,2]
[397410963,1765177838339,-600.0,7.608e-05,2]
[397410965,1765177838348,-3385.45776728,7.614e-05,2]
[397410970,1765177838372,-141092.38968661,7.614e-05,2]
[397410974,1765177838384,-29527.53498707,7.614e-05,2]
[397410976,1765177838396,-44742.83825526,7.614e-05,2]
[397411309,1765177841889,-41613.54921853,7.614e-05,2]
[397411311,1765177841900,-31686.20508519,7.614e-05,2]
[397412824,1765177898980,107.85243501,6.617e-05,2]
[397412825,1765177982180,184.45,5.1e-05,2]
[397412828,1765178459099,1001.28605325,0.000211,99]
[397412832,1765178684706,180.0,0.000203,120]
[397412834,1765178734139,-285.52,6.811e-05,2]
[397412835,1765178734159,-517.0,6.811e-05,2]
[397412836,1765178734185,-200.12636175,7.431e-05,2]
[397412838,1765178827104,-260.05838405,6.805e-05,2]
[397412839,1765178848084,-188.3798674,7.512e-05,2]
[397412841,1765178944632,250.0,9.993e-05,3]
[397412842,1765178969093,-276.03,6.958e-05,2]
[397412844,1765179013267,121.4972,6.958e-05,2]
[397412886,1765179032183,-151.0228,6.958e-05,2]
[397412887,1765179032193,-300.0,7.512e-05,2]
[397412888,1765179032203,-526.0,7.512e-05,2]
[397412890,1765179032212,-517.85956899,7.513e-05,2]
[397412892,1765179032221,-172.89387031,7.513e-05,2]
[397412939,1765179038473,-327.10612969,7.513e-05,2]
[397412941,1765179038484,-155.1355221,7.513e-05,2]
[397413274,1765179041924,-344.8644779,7.513e-05,2]
[397413276,1765179041934,-252.0355221,7.513e-05,2]
[397413279,1765179041946,-247.9644779,7.513e-05,2]
[397413281,1765179041955,-469.8635221,7.513e-05,2]
[397413289,1765179042018,-30.1364779,7.513e-05,2]
[397413291,1765179042028,-500.0,7.513e-05,2]
[397413293,1765179042038,-124.37610203,7.513e-05,2]
[397413416,1765179043340,-75.62389797,7.513e-05,2]
[397413418,1765179043350,-466.78610203,7.513e-05,2]
[397413420,1765179043362,-33.21389797,7.513e-05,2]
[397413422,1765179043372,-627.63910984,7.513e-05,2]
[397413424,1765179043381,-44679.00928186,7.514e-05,2]
[397413440,1765179043543,-47005.92973262,7.514e-05,2]
[397413442,1765179043559,-5669.61570614,7.514e-05,2]
[397413658,1765179046099,-40845.74157173,7.514e-05,2]
[397413661,1765179046114,-1438.72,7.514e-05,2]
[397413672,1765179046211,-13644.88664402,7.514e-05,2]
[397413674,1765179046223,-2533.04094035,7.514e-05,2]
[397413677,1765179046239,-454.52684659,7.514e-05,2]
[397415995,1765179183089,155.64,5.1e-05,2]
[397415999,1765179511159,159.0,0.000101,3]
[397416004,1765179747185,1007.13487456,0.000111,7]
[397416005,1765179937128,-1102.36195049,6.744e-05,2]
[397416008,1765180037131,-250.59594546,6.744e-05,2]
[397416009,1765180046129,-153.82883078,6.744e-05,2]
[397416010,1765180050202,-357.82398385,6.744e-05,2]
[397416011,1765180143270,250.0,0.00010099,3]
[397416012,1765180148099,-424.02127048,6.677e-05,2]
[397416013,1765180151084,-4416.93580851,6.677e-05,2]
[397416014,1765180151103,-262.74,6.813e-05,2]
[397416015,1765180151122,-518.0,6.883e-05,2]
[397416016,1765180151142,-286.97492872,6.933e-05,2]
[397416017,1765180151164,-300.0,7.019e-05,2]
[397416018,1765180151184,-300.0,7.019e-05,2]
[397416019,1765180151205,-300.0,7.02e-05,2]
[397416020,1765180151226,-300.0,7.02e-05,2]
[397416021,1765180151247,-300.0,7.02e-05,2]
[397416022,1765180151268,-300.0,7.02e-05,2]
[397416023,1765180151289,-300.0,7.02e-05,2]
[397416024,1765180151320,-300.0,7.02e-05,2]
[397416025,1765180151344,-300.0,7.02e-05,2]
[397416026,1765180151367,-300.0,7.02e-05,2]
[397416027,1765180151389,-300.0,7.02e-05,2]
[397416028,1765180151411,-300.0,7.02e-05,2]
[397416029,1765180151432,-300.0,7.02e-05,2]
[397416030,1765180151455,-300.0,7.02e-05,2]
[397416031,1765180151477,-104.87393647,7.02e-05,2]
[397416032,1765180173086,-171.60116285,6.915e-05,2]
[397416842,1765180246324,-518.0,6.915e-05,2]
[397416844,1765180246334,-287.76,6.917e-05,2]
[397416846,1765180246343,-195.12606353,7.02e-05,2]
[397416848,1765180246352,-300.0,7.02e-05,2]
[397416850,1765180246363,-300.0,7.02e-05,2]
[397416852,1765180246372,-291.53926667,7.298e-05,2]
[397416883,1765180246643,-184.61475649,7.298e-05,2]
[397416885,1765180246659,-153.0,7.3e-05,2]
[397416887,1765180246669,-2875.23613331,7.314e-05,2]
[397416896,1765180246738,-1502.95,7.314e-05,2]
[397419427,1765180383241,184.45,5.1e-05,2]
[397419456,1765181143141,-152.72,6.744e-05,2]
[397419457,1765181143163,-517.0,6.812e-05,2]
[397419458,1765181143186,-294.48,6.951e-05,2]
[397419459,1765181143206,-300.0,6.998e-05,2]
[397419460,1765181143228,-300.0,6.998e-05,2]
[397419461,1765181143250,-16.17387028,6.998e-05,2]
[397419463,1765181227078,-204.86719059,6.928e-05,2]
[397419464,1765181228093,-212.98814579,6.928e-05,2]
[397419465,1765181232081,-608.49707224,6.928e-05,2]
[397419466,1765181248122,-564.61713352,6.928e-05,2]
[397419469,1765181342937,250.0,0.00010098,3]
[397419471,1765181352120,-303.6,6.952e-05,2]
[397419472,1765181352154,-300.0,6.996e-05,2]
[397419473,1765181352175,-154.89831664,6.997e-05,2]
[397419474,1765181352198,-500.0,6.997e-05,2]
[397419475,1765181352219,-500.0,6.997e-05,2]
[397419476,1765181352244,-500.0,6.997e-05,2]
[397419477,1765181352265,-500.0,6.997e-05,2]
[397419478,1765181352286,-500.0,6.997e-05,2]
[397419479,1765181352305,-500.0,6.997e-05,2]
[397419480,1765181352325,-438.23462431,6.997e-05,2]
[397419481,1765181352352,-500.0,6.997e-05,2]
[397419482,1765181352376,-500.0,6.997e-05,2]
[397419483,1765181352395,-500.0,6.997e-05,2]
[397419484,1765181352414,-500.0,6.997e-05,2]
[397419485,1765181352441,-500.0,6.997e-05,2]
[397419486,1765181352464,-500.0,6.997e-05,2]
[397419487,1765181352484,-500.0,6.997e-05,2]
[397419488,1765181352505,-500.0,6.997e-05,2]
[397419489,1765181352528,-500.0,6.997e-05,2]
[397419490,1765181352547,-500.0,6.997e-05,2]
[397419491,1765181352569,-500.0,6.997e-05,2]
[397419492,1765181352588,-500.0,6.997e-05,2]
[397419493,1765181352615,-500.0,6.997e-05,2]
[397419494,1765181352639,-500.0,6.997e-05,2]
[397419495,1765181352662,-500.0,6.997e-05,2]
[397419496,1765181352686,-500.0,6.997e-05,2]
[397419497,1765181352707,-500.0,6.997e-05,2]
[397419498,1765181352730,-500.0,6.997e-05,2]
[397419499,1765181352750,-500.0,6.997e-05,2]
[397419500,1765181352774,-473.39362673,6.997e-05,2]
[397419501,1765181352797,-500.0,6.997e-05,2]
[397419502,1765181352818,-500.0,6.997e-05,2]
[397419503,1765181352843,-500.0,6.997e-05,2]
[397419504,1765181352862,-500.0,6.997e-05,2]
[397419505,1765181352886,-500.0,6.997e-05,2]
[397419506,1765181352907,-500.0,6.997e-05,2]
[397419507,1765181352928,-500.0,6.997e-05,2]
[397419508,1765181352955,-500.0,6.997e-05,2]
[397419509,1765181352977,-500.0,6.997e-05,2]
[397419510,1765181353000,-616.49870155,6.997e-05,2]
[397419511,1765181353020,-95.49392762,6.997e-05,2]
[397419527,1765181432959,-301.11,6.953e-05,2]
[397419529,1765181432970,-19.89,6.996e-05,2]
[397419562,1765181439547,-263.11,6.996e-05,2]
[397419564,1765181439557,-152.53417249,6.996e-05,2]
[397419573,1765181439789,-147.46582751,6.996e-05,2]
[397419574,1765181439799,-519.0,6.996e-05,2]
[397419575,1765181439809,-792.0,6.996e-05,2]
[397419576,1765181439818,-3853.42056232,7e-05,2]
[397419577,1765181439830,-5745.74079194,7e-05,2]
[397419578,1765181439841,-400.83864574,7e-05,2]
[397419579,1765181439850,-3611.68992469,7.214e-05,2]
[397419863,1765181442513,-32676.64445898,7.214e-05,2]
[397420010,1765181443866,-780.75750266,7.214e-05,2]
[397420012,1765181443878,-33104.56881,7.214e-05,2]
[397420014,1765181444052,-300.0,7.214e-05,2]
[397420262,1765181446518,-159.80384714,6.996e-05,2]
[397420263,1765181446527,-497.0437363,6.996e-05,2]
[397420264,1765181446536,-949.70967293,7.214e-05,2]
[397420268,1765181446583,-4689.27203357,7.214e-05,2]
[397423589,1765182176141,437.16887244,0.000101,3]
[397423594,1765182330153,-515.0,6.702e-05,2]
[397423595,1765182330176,-346.47777083,6.783e-05,2]
[397423596,1765182330201,-198.94134178,6.891e-05,2]
[397423597,1765182432104,-300.0,6.89e-05,2]
[397423598,1765182432127,-65.39158788,6.891e-05,2]
[397423599,1765182449084,-434.60841212,6.891e-05,2]
[397423600,1765182449105,-500.0,6.891e-05,2]
[397423601,1765182449125,-114.71531961,6.891e-05,2]
[397423602,1765182452101,-385.28468039,6.891e-05,2]
[397423603,1765182452123,-209.75027062,6.891e-05,2]
[397423605,1765182543030,250.0,0.00010099,3]
[397423606,1765182553089,-300.0,6.889e-05,2]
[397423607,1765182553109,-682.25512982,6.89e-05,2]
[397423608,1765182553130,-500.0,6.89e-05,2]
[397423609,1765182553149,-682.25512982,6.89e-05,2]
[397423610,1765182553167,-682.25512982,6.89e-05,2]
[397423611,1765182553188,-500.0,6.89e-05,2]
[397423612,1765182553207,-682.25512982,6.89e-05,2]
[397423613,1765182553229,-500.0,6.89e-05,2]
[397423614,1765182553249,-682.25512982,6.89e-05,2]
[397423615,1765182553268,-682.25512982,6.89e-05,2]
[397423616,1765182553291,-500.0,6.89e-05,2]
[397423617,1765182553314,-682.25512982,6.89e-05,2]
[397423618,1765182553337,-517.28015274,6.89e-05,2]
[397423619,1765182553356,-682.25512982,6.89e-05,2]
[397423620,1765182553376,-682.25512982,6.89e-05,2]
[397423621,1765182553396,-682.25512982,6.89e-05,2]
[397423622,1765182553416,-682.25512982,6.89e-05,2]
[397423623,1765182553436,-682.25512982,6.89e-05,2]
[397423624,1765182553456,-682.25512982,6.89e-05,2]
[397423625,1765182553476,-682.25512982,6.89e-05,2]
[397423626,1765182553497,-682.25512982,6.89e-05,2]
[397423627,1765182553518,-682.25512982,6.89e-05,2]
[397423628,1765182553539,-682.25512982,6.89e-05,2]
[397423629,1765182553559,-682.25512982,6.89e-05,2]
[397423630,1765182553579,-682.25512982,6.89e-05,2]
[397423631,1765182553598,-682.25512982,6.89e-05,2]
[397423632,1765182553617,-682.25512982,6.89e-05,2]
[397423633,1765182553637,-682.25512982,6.89e-05,2]
[397423634,1765182553656,-682.25512982,6.89e-05,2]
[397423635,1765182553675,-682.25512982,6.89e-05,2]
[397423636,1765182553694,-682.25512982,6.89e-05,2]
[397423637,1765182553714,-682.25512982,6.89e-05,2]
[397423638,1765182553734,-682.25512982,6.89e-05,2]
[397423639,1765182553752,-682.25512982,6.89e-05,2]
[397423640,1765182553772,-682.25512982,6.89e-05,2]
[397423641,1765182553791,-682.25512982,6.89e-05,2]
[397423642,1765182553810,-682.25512982,6.89e-05,2]
[397423643,1765182553829,-682.25512982,6.89e-05,2]
[397423644,1765182553849,-682.25512982,6.89e-05,2]
[397423645,1765182553868,-682.25512982,6.89e-05,2]
[397423646,1765182553888,-682.25512982,6.89e-05,2]
[397423647,1765182553907,-682.25512982,6.89e-05,2]
[397423648,1765182553926,-682.25512982,6.89e-05,2]
[397423649,1765182553945,-682.25512982,6.89e-05,2]
[397423650,1765182553964,-682.25512982,6.89e-05,2]
[397423651,1765182553983,-682.25512982,6.89e-05,2]
[397423652,1765182554002,-682.25512982,6.89e-05,2]
[397423653,1765182554027,-682.25512982,6.89e-05,2]
[397423654,1765182554046,-682.25512982,6.89e-05,2]
[397423655,1765182554066,-682.25512982,6.89e-05,2]
[397423656,1765182554086,-682.25512982,6.89e-05,2]
[397423657,1765182554105,-682.25512982,6.89e-05,2]
[397423658,1765182554125,-682.25512982,6.89e-05,2]
[397423659,1765182554145,-682.25512982,6.89e-05,2]
[397423660,1765182554164,-682.25512982,6.89e-05,2]
[397423661,1765182554184,-682.25512982,6.89e-05,2]
[397423662,1765182554203,-682.25512982,6.89e-05,2]
[397423663,1765182554223,-682.25512982,6.89e-05,2]
[397423664,1765182554242,-682.25512982,6.89e-05,2]
[397423665,1765182554261,-682.25512982,6.89e-05,2]
[397423666,1765182554282,-682.25512982,6.89e-05,2]
[397423667,1765182554301,-682.25512982,6.89e-05,2]
[397423668,1765182554321,-682.25512982,6.89e-05,2]
[397423669,1765182554341,-4377.04761709,6.89e-05,2]
[397423670,1765182554361,-4377.04761709,6.89e-05,2]
[397423671,1765182554381,-4377.04761709,6.89e-05,2]
[397423672,1765182554401,-4377.04761709,6.89e-05,2]
[397423673,1765182554422,-4377.04761709,6.89e-05,2]
[397423674,1765182554443,-4377.04761709,6.89e-05,2]
[397423675,1765182554470,-4377.04761709,6.89e-05,2]
[397423676,1765182554490,-4377.04761709,6.89e-05,2]
[397423677,1765182554512,-4377.04761709,6.89e-05,2]
[397423678,1765182554535,-4377.04761709,6.89e-05,2]
[397423679,1765182554555,-4377.04761709,6.89e-05,2]
[397423680,1765182554575,-4377.04761709,6.89e-05,2]
[397423681,1765182554594,-4377.04761709,6.89e-05,2]
[397423682,1765182554614,-4377.04761709,6.89e-05,2]
[397423683,1765182554635,-4377.04761709,6.89e-05,2]
[397423684,1765182554654,-4377.04761709,6.89e-05,2]
[397423685,1765182554676,-287.29142378,6.89e-05,2]
[397423686,1765182560095,-4089.75619331,6.89e-05,2]
[397423687,1765182560116,-4377.04761709,6.89e-05,2]
[397423688,1765182560136,-4377.04761709,6.89e-05,2]
[397423689,1765182560157,-4377.04761709,6.89e-05,2]
[397423690,1765182560177,-4377.04761709,6.89e-05,2]
[397423691,1765182560198,-4377.04761709,6.89e-05,2]
[397423692,1765182560218,-4377.04761709,6.89e-05,2]
[397423693,1765182560237,-4377.04761709,6.89e-05,2]
[397423694,1765182560258,-4377.04761709,6.89e-05,2]
[397423695,1765182560279,-4377.04761709,6.89e-05,2]
[397423696,1765182560299,-4377.04761709,6.89e-05,2]
[397423697,1765182560319,-4377.04761709,6.89e-05,2]
[397423698,1765182560339,-4377.04761709,6.89e-05,2]
[397423699,1765182560360,-4377.04761709,6.89e-05,2]
[397423700,1765182560379,-4377.04761704,6.89e-05,2]
[397423701,1765182560401,-4377.04761704,6.89e-05,2]
[397423702,1765182560422,-339.54821542,6.891e-05,2]
[397423703,1765182560448,-154.89831663,6.892e-05,2]
[397423704,1765182560482,-99892.28235169,6.893e-05,2]
[397423705,1765182570088,-18308.38208234,6.893e-05,2]
[397423786,1765182633024,-300.0,6.892e-05,2]
[397423788,1765182633034,-574.63818407,6.893e-05,2]
[397423790,1765182633045,-310.21679657,6.893e-05,2]
[397424077,1765182638822,-521.37153654,6.893e-05,2]
[397424079,1765182638834,-781.84131774,6.893e-05,2]
[397424081,1765182638846,-1116.45259264,6.893e-05,2]
[397424084,1765182638857,-680.82787613,6.893e-05,2]
[397424097,1765182638983,-3251.0,6.893e-05,2]
[397424610,1765182644077,-297.4454743,6.893e-05,2]
[397424620,1765182644162,-5910.00008699,6.893e-05,2]
[397424622,1765182644176,-4381.53923045,6.893e-05,2]
[397424625,1765182644190,-25018.35920609,6.893e-05,2]
[397424627,1765182644208,-272.83182917,6.893e-05,2]
[397424856,1765182646687,-16254.89171337,6.893e-05,2]
[397424863,1765182646741,-1437.1938843,6.893e-05,2]
[397424865,1765182646753,-1411.95357189,6.893e-05,2]
[397426311,1765182662224,150.47,5.1e-05,2]
[397429279,1765182726274,150.47,5.1e-05,2]
[397429281,1765182784120,154.01,5.1e-05,2]
[397429282,1765182844869,154.01,5.1e-05,2]
[397429284,1765183088207,7502.7,0.000211,99]
[397429315,1765183549216,-1098.1676667,6.108e-05,2]
[397429317,1765183626092,-397.7223333,6.108e-05,2]
[397429318,1765183626113,-3085.73554157,6.17e-05,2]
[397429319,1765183639127,-162.53641484,6.047e-05,2]
[397429320,1765183639152,-35.41302797,6.17e-05,2]
[397429326,1765183649074,-550.55625877,6.108e-05,2]
[397429327,1765183653219,-1719.13437619,6.108e-05,2]
[397429328,1765183653241,-1878.85143046,6.17e-05,2]
[397429329,1765183653261,-332.75725111,6.201e-05,2]
[397429330,1765183653281,-1200.0,6.487e-05,2]
[397429331,1765183653301,-512.0,6.489e-05,2]
[397429332,1765183653321,-300.0,6.614e-05,2]
[397429333,1765183653341,-300.0,6.615e-05,2]
[397429334,1765183653361,-300.0,6.615e-05,2]
[397429335,1765183653380,-449.18199305,6.615e-05,2]
[397429336,1765183653401,-500.0,6.615e-05,2]
[397429337,1765183653422,-500.0,6.615e-05,2]
[397429338,1765183653443,-227.37762363,6.615e-05,2]
[397429339,1765183653466,-500.0,6.615e-05,2]
[397429340,1765183653485,-650.00000001,6.615e-05,2]
[397429341,1765183653506,-500.0,6.615e-05,2]
[397429342,1765183653525,-500.0,6.615e-05,2]
[397429343,1765183653547,-500.0,6.615e-05,2]
[397429344,1765183653569,-500.0,6.615e-05,2]
[397429345,1765183653590,-500.0,6.615e-05,2]
[397429346,1765183653611,-500.0,6.615e-05,2]
[397429347,1765183653630,-500.0,6.615e-05,2]
[397429348,1765183653654,-500.0,6.615e-05,2]
[397429349,1765183653675,-500.0,6.615e-05,2]
[397429350,1765183653695,-508.75532591,6.615e-05,2]
[397429351,1765183653717,-500.0,6.615e-05,2]
[397429352,1765183653739,-500.0,6.615e-05,2]
[397429353,1765183653759,-516.99566884,6.615e-05,2]
[397429354,1765183653778,-500.0,6.615e-05,2]
[397429355,1765183653800,-500.0,6.615e-05,2]
[397429356,1765183653821,-500.0,6.615e-05,2]
[397429357,1765183653844,-546.39861267,6.615e-05,2]
[397429358,1765183653864,-500.0,6.615e-05,2]
[397429359,1765183653884,-500.0,6.615e-05,2]
[397429360,1765183653903,-500.0,6.615e-05,2]
[397429361,1765183653924,-500.0,6.615e-05,2]
[397429362,1765183653945,-500.0,6.615e-05,2]
[397429363,1765183653969,-500.0,6.615e-05,2]
[397429364,1765183653988,-500.0,6.615e-05,2]
[397429365,1765183654008,-500.0,6.615e-05,2]
[397429366,1765183654027,-500.0,6.615e-05,2]
[397429367,1765183654050,-500.0,6.615e-05,2]
[397429368,1765183654070,-500.0,6.615e-05,2]
[397429369,1765183654091,-500.0,6.615e-05,2]
[397429370,1765183654110,-500.0,6.615e-05,2]
[397429371,1765183654129,-500.0,6.615e-05,2]
[397429372,1765183654154,-500.0,6.615e-05,2]
[397429373,1765183654174,-500.0,6.615e-05,2]
[397429374,1765183654193,-500.0,6.615e-05,2]
[397429375,1765183654216,-500.0,6.615e-05,2]
[397429376,1765183654236,-500.0,6.615e-05,2]
[397429377,1765183654256,-500.0,6.615e-05,2]
[397429378,1765183654275,-500.0,6.615e-05,2]
[397429379,1765183654297,-256.46594479,6.615e-05,2]
[397429386,1765183742722,250.0,0.00010098,3]
[397429387,1765183751089,-5000.0,6.549e-05,2]
[397429388,1765183751108,-300.0,6.613e-05,2]
[397429389,1765183751127,-500.0,6.614e-05,2]
[397429390,1765183751148,-500.0,6.614e-05,2]
[397429391,1765183751170,-500.0,6.614e-05,2]
[397429392,1765183751190,-224.11062987,6.614e-05,2]
[397429393,1765183751209,-500.0,6.614e-05,2]
[397429394,1765183751231,-500.0,6.614e-05,2]
[397429395,1765183751250,-500.0,6.614e-05,2]
[397429396,1765183751268,-500.0,6.614e-05,2]
[397429397,1765183751288,-500.0,6.614e-05,2]
[397429398,1765183751308,-500.0,6.614e-05,2]